Cogmind - Beta 14 @@@ ROGUE MODE // 2024.10.10 @ 17:58:02 Player: Deo Result: Destroyed by G-47 Trooper with Particle Gun Performance ------------- Evolutions (0) 0 Regions Visited (2) 400 Robots Destroyed (23) 115 Value Destroyed (670) 670 Prototype IDs (0) 0 Alien Tech Used (0) 0 Bonus (0) 0 TOTAL SCORE: 1185 Bonus ------- None Cogmind --------- Core Integrity 0/250 Matter 288/300 Energy 93/250 System Corruption 0% Temperature Cool (55) Movement Walking (120) Location -10/Mines Parts ------- > --- POWER (1) -------- Ion Engine > --- PROPULSION (2) --- Aluminum Leg Aluminum Leg > --- UTILITY (2) ------ Heat Sink Medium Storage Unit > --- WEAPON (2) ------- Beam Cannon Light Assault Rifle > --- INVENTORY (10) --- Light Nuclear Core Aluminum Leg Aluminum Leg Aluminum Leg Aluminum Leg Light Armor Plating Light Armor Plating Light Assault Rifle Light Assault Rifle Peak State ------------ > --- POWER ------------ Light Nuclear Core > --- PROPULSION ------- Aluminum Leg Aluminum Leg > --- UTILITY ---------- Medium Storage Unit Light Armor Plating > --- WEAPON ----------- Medium Laser Light Assault Rifle > --- INVENTORY -------- Aluminum Leg Aluminum Leg Aluminum Leg Small Storage Unit Signal Interpreter Light Armor Plating Light Armor Plating Light Assault Rifle Light Assault Rifle Light Assault Rifle [Rating: 10] Favorites ----------- Power Light Nuclear Core Engine Light Ion Engine Power Core Light Nuclear Core Propulsion Aluminum Leg Leg Aluminum Leg Utility Medium Storage Unit Device Tractor Beam Storage Medium Storage Unit Protection Light Armor Plating Weapon Medium Laser Energy Gun Medium Laser Energy Cannon Beam Cannon Ballistic Gun Light Assault Rifle Build | -11 -10 -10 ------- Run | Yrd Mat Min Slots Evolved . | . . . Power . | . . . Propulsion . | . . . Utility . | . . . Weapon . | . . . Parts Attached 21 | 6 14 1 Power 4 | 1 2 1 Engine 3 | 1 1 1 Core 1 | . 1 . Reactor . | . . . Propulsion 6 | 2 4 . Treads . | . . . Leg 6 | 2 4 . Wheel . | . . . Hover . | . . . Flight . | . . . Utility 6 | 1 5 . Device 2 | . 2 . Storage 2 | 1 1 . Processor . | . . . Hackware . | . . . Protection 2 | . 2 . Artifact . | . . . Weapon 5 | 2 3 . Energy Gun 2 | 2 . . Energy Cannon 1 | . 1 . Ballistic Gun 2 | . 2 . Ballistic Cannon . | . . . Launcher . | . . . Special Weapon . | . . . Impact Weapon . | . . . Slashing Weapon . | . . . Piercing Weapon . | . . . Special Melee Weapon . | . . . Unidentified Prototypes . | . . . Parts Lost 3 | . 2 1 Power 2 | . 1 1 Propulsion . | . . . Utility 1 | . 1 . Weapon . | . . . Highest Loss Streak 1 | . 1 1 To Critical Strikes . | . . . Average Slot Usage (%) 98 | . 97 100 Engine 3 | . 4 . Core 9 | . 9 13 Leg 28 | . 28 28 Device 6 | . 6 14 Storage 14 | . 14 14 Protection 5 | . 6 . Energy Gun 14 | . 16 . Energy Cannon 4 | . 3 14 Ballistic Gun 8 | . 8 14 Peak Build Rating 10 | 6 10 10 Average Rating 8 | 3 8 9 On Entrance 5 | . 6 10 Naked Turns . | . . . Heaviest Build 22 | 12 22 20 Greatest Support 20 | 20 20 20 Greatest Overweight (x) 1 | 1 1 . Average Overweight (x) . | . . . Largest Inventory Capacity 10 | 8 10 10 Average Capacity 9 | 7 9 10 Most Carried 10 | 7 10 10 Average Carried 8 | 2 8 9 Final Capacity 10 | 8 10 10 Final Carried 10 | 2 10 9 Class Distribution -------------------- 82% | Mutant 17% | Scavenger-Mutant Dominant Class ---------------- Mutant | -10/Materials Scavenger-Mutant | -10/Mines Resources | -11 -10 -10 ----------- Run | Yrd Mat Min Matter Collected 412 | 207 203 2 Remotely 39 | . 39 . Salvage Created 757 | . 707 50 Parts 50 | . 46 4 Haulers Intercepted . | . . . Recyclers Shooed . | . . . Parts Field Recycled . | . . . Retrieved Matter . | . . . Parts Self-Destructed . | . . . Prevented . | . . . Kills | -11 -10 -10 ------- Run | Yrd Mat Min Combat Hostiles Destroyed 20 | . 18 2 Guns 14 | . 13 1 Cannons 5 | . 4 1 Classes Destroyed 4 | . 4 . Builder 1 | . 1 . Watcher 2 | . 2 . Swarmer 4 | . 3 1 Grunt 16 | . 15 1 Best Kill Streak 4 | . 4 1 Combat Bots Only 3 | . 3 1 Max Kills in Single Turn 2 | . 2 1 Gunslinging 1 | . 1 . Exploded . | . . . Melee . | . . . Uniques/NPCs Destroyed . | . . . Combat | -11 -10 -10 -------- Run | Yrd Mat Min Hostile Shots Fired 115 | . 91 24 Missed 23 | . 15 8 Damage Taken 1079 | . 896 183 Core 256 | . 203 53 Absorbed by Shields . | . . . Core Remaining (%) 100 | 100 . . Volleys Fired 66 | . 59 7 Largest 2 | . 2 2 Hottest 110 | . 110 80 Shots Fired 124 | . 110 14 Gun 98 | . 91 7 Cannon 26 | . 19 7 Launcher . | . . . Special . | . . . Kinetic 34 | . 27 7 Thermal 90 | . 83 7 Explosive . | . . . Electromagnetic . | . . . Robot Hit Streak 11 | . 11 4 Robot Miss Streak 3 | . 3 2 Penetration Max . | . . . Secondary Targets 2 | . 2 . Max Gunslinging Chain 1 | . 1 . Shots Hit Robots 85 | . 76 9 Core Hits 41 | . 38 3 Critical Kills . | . . . Critical Parts Destroyed . | . . . Critical Strikes 4 | . 4 . Burn 4 | . 4 . Melee Attacks . | . . . Impact . | . . . Slashing . | . . . Piercing . | . . . Sneak Attacks . | . . . Combat Hostiles . | . . . Follow-up Attacks . | . . . Damage Inflicted 1142 | 3 1002 137 Guns 738 | . 705 33 Cannons 386 | . 282 104 Explosions . | . . . Melee . | . . . Ramming 18 | 3 15 . Kinetic 166 | . 133 33 Thermal 958 | . 854 104 Explosive . | . . . Electromagnetic . | . . . Impact . | . . . Slashing . | . . . Piercing . | . . . Highest Corruption . | . . . Average Corruption . | . . . Corruption Purged . | . . . Corruption Blocked . | . . . Overload Shots . | . . . Overflow Damage . | . . . Projectiles . | . . . Explosions . | . . . Melee . | . . . Knockbacks . | . . . Impact . | . . . Kinetic . | . . . Secondary . | . . . Self-Inflicted Damage . | . . . Shots . | . . . Rammed . | . . . Targets Rammed 9 | 2 7 . Kicked 9 | 2 7 . Crushed . | . . . Highest Temperature 390 | . 390 71 Average Temperature 112 | . 117 33 Received Heat Transfer 522 | . 441 81 Effects 7 | . 7 . Shutdowns 1 | . 1 . Energy Bleed 1 | . 1 . Interference 5 | . 5 . Siege Activations . | . . . Robots Corrupted . | . . . Combat Hostiles . | . . . Parts Fried . | . . . Impact Corruptions . | . . . Robots Melted 1 | . 1 . Combat Hostiles 1 | . 1 . Parts Melted 2 | . 2 . Heat Transferred 2812 | . 2590 222 Parts Sabotaged . | . . . Parts Stolen . | . . . Parts Stripped . | . . . Power Chain Reactions . | . . . Alert | -11 -10 -10 ------- Run | Yrd Mat Min Peak Influence 203 | . 203 153 Initial 78 | . . 78 Average 101 | . 105 116 Maximum Alert Level 1 | . 1 . Low Security (%) 93 | 100 91 100 Level 1 6 | . 8 . Level 2 . | . . . Level 3 . | . . . Level 4 . | . . . Level 5 . | . . . High Security . | . . . Max Security . | . . . Squads Dispatched 5 | . 5 . Investigation 2 | . 2 . Extermination . | . . . Reinforcement 3 | . 3 . Assault . | . . . Garrison . | . . . Intercept . | . . . Searches Triggered . | . . . Construction Impeded . | . . . Haulers Reinforced . | . . . Active Scanning Responses . | . . . Cargo Convoy Interrupts . | . . . Stealth | -11 -10 -10 --------- Run | Yrd Mat Min Distress Signals 3 | . 3 . Communications Jammed . | . . . Distress Signals . | . . . Times Spotted 37 | . 32 5 Peak Tracking Total 5 | . 5 3 Tactical Retreats 5 | . 4 1 Traps | -11 -10 -10 ------- Run | Yrd Mat Min Traps Triggered 2 | . 2 . Indirectly . | . . . Trap Hack Attempts . | . . . Triggered . | . . . Disarmed . | . . . Reprogrammed . | . . . Reused . | . . . Traps Extracted . | . . . Installed . | . . . Triggered . | . . . Machines | -11 -10 -10 ---------- Run | Yrd Mat Min Machines Disabled 1 | . . 1 Max in Single Turn 1 | . . 1 Machines Repaired . | . . . Machines Dismantled . | . . . Machines Sabotaged . | . . . Overloaded Fab Kills . | . . . Hacking | -11 -10 -10 --------- Run | Yrd Mat Min Machines Accessed 1 | . 1 . Terminals 1 | . 1 . Fabricators . | . . . Repair Stations . | . . . Recycling Units . | . . . Scanalyzers . | . . . Garrison Access . | . . . Total Hacks 1 | . 1 . Successful 1 | . 1 . Failed . | . . . Catastrophic . | . . . Database Lockouts . | . . . Manual 1 | . 1 . Terminals 1 | . 1 . Fabricators . | . . . Repair Stations . | . . . Recycling Units . | . . . Scanalyzers . | . . . Garrison Access . | . . . Terminal Hacks 1 | . 1 . Zone Layout 1 | . 1 . Fabricator Hacks . | . . . Repair Station Hacks . | . . . Recycling Unit Hacks . | . . . Scanalyzer . | . . . Garrison Access Hacks . | . . . Unauthorized Hacks . | . . . Terminals . | . . . Fabricators . | . . . Repair Stations . | . . . Recycling Units . | . . . Scanalyzers . | . . . Garrison Access . | . . . Data Cores Recovered . | . . . Used . | . . . Hacking Detections . | . . . Full Trace Events . | . . . Feedback Events . | . . . Feedback Blocked . | . . . Robot Schematics Acquired . | . . . Robots Built . | . . . Authchips . | . . . Time . | . . . Total Robot Build Rating . | . . . Part Schematics Acquired . | . . . Parts Built . | . . . Authchips . | . . . Time . | . . . Total Part Build Rating . | . . . Parts Repaired . | . . . Time . | . . . Parts Recycled . | . . . Recycled Matter . | . . . Retrieved Matter . | . . . Retrieved Components . | . . . Parts Scanalyzed . | . . . Part Schematics Acquired . | . . . Parts Damaged . | . . . Bothacking | -11 -10 -10 ------------ Run | Yrd Mat Min Used RIF Installer . | . . . Robots Hacked . | . . . Non-combat . | . . . Combat . | . . . Robot Hacks Applied . | . . . Relay Couplers Released . | . . . Fabnet Peak Effective % . | . . . Robots Rewired . | . . . Allies Hacked . | . . . Hacks Repelled . | . . . Allies | -11 -10 -10 -------- Run | Yrd Mat Min Total Allies . | . . . Largest Group . | . . . Highest-Rated Group . | . . . Highest-Rated Ally . | . . . Total Orders . | . . . Ally Attacks . | . . . Total Damage . | . . . Kills . | . . . Allies Corrupted . | . . . Allies Melted . | . . . Intel | -11 -10 -10 ------- Run | Yrd Mat Min Robot Analysis Total . | . . . Derelict Logs Recovered . | . . . Drone Launches . | . . . Drone Recoveries . | . . . Exploration | -11 -10 -10 ------------- Run | Yrd Mat Min Turns Passed 1679 | 78 1442 159 Spaces Moved 889 | 57 733 99 Core 23 | 23 . . Treads . | . . . Legs 866 | 34 733 99 Wheels . | . . . Hover . | . . . Flight . | . . . Fastest Speed 50 | 50 120 120 Average Speed 136 | 109 140 120 Slowest Speed 190 | 120 190 120 Overloaded Moves . | . . . Propulsion Burnouts . | . . . Robots Hopped . | . . . Cave-ins Triggered . | . . . Exploration Rate (%) 38 | 4 87 25 Regions Visited 2 Branch Regions 1 Pre-discovered Areas . | . . . Known Exits Taken . | . . . Unknown Exits Taken 2 | 1 1 . Scrap Searched 1 | . . 1 Spaces Dug . | . . . Terrain Destroyed . | . . . Melee . | . . . Projectile . | . . . AOE . | . . . Terrain Rammed . | . . . Walls Destroyed . | . . . Machines Disabled . | . . . Actions | -11 -10 -10 --------- Run | Yrd Mat Min Total 1245 | 72 1046 127 Wait 210 | . 190 20 Move 887 | 56 732 99 Hop . | . . . Pick Up 34 | 8 26 . Fast Attach . | . . . Attach 21 | 6 14 1 Detach 3 | . 3 . Swap . | . . . Drop 15 | . 15 . Fire 66 | . 59 7 Melee . | . . . Ram . | . . . Kick 9 | 2 7 . Crush . | . . . Escape Stasis . | . . . Rewire . | . . . Trap . | . . . Miscellaneous . | . . . Route ------- -11/Scrapyard -10/Materials (discovered 4 exits: [*Mat x3] / [*Min]) -10/Mines History --------- Turn | Location | Event 13 | -11/Scrapyard | Discovered new exit (range 16) 79 | -11/Scrapyard | Entered Materials 301 | -10/Materials | Build established: Mutant 584 | -10/Materials | Discovered new exit (range 4) 737 | -10/Materials | Discovered new exit (range 16) 929 | -10/Materials | Discovered new exit (range 16) 1087 | -10/Materials | Core integrity fell below 50% 1369 | -10/Materials | Core integrity fell below 20% 1426 | -10/Materials | Discovered new exit (range 3) 1521 | -10/Materials | Entered Mines 1676 | -10/Mines | Build established: Scavenger-Mutant 1680 | -10/Mines | Destroyed by G-47 Trooper with Particle Gun Last Messages --------------- LOCATION=UNKNOWN GOAL=ESCAPE 01525_ A derelict is hurriedly installing traps. 01527_ 33-5CO(g): "Hehe, this'll put a wrench in their mining defense operations..." 01527_ 33-5CO(g) slips into the shadows. 01558_ S-10 Pest destroyed. 01574_ Acquired 2 matter. 01605_ Searching scrap... 01605_ Found Lgt. Assault Rifle. 01605_ Found Med. Battery. 01605_ Found 64 Matter. 01605_ Found 36 Matter. 01647_ K-01 Serf collects debris. 01669_ Laser Drill disabled. 01669_ K-01 Serf collects debris. 01673_ Lgt. Nuclear Core destroyed. 01673_ K-01 Serf collects debris. 01678_ G-34 Mercenary destroyed. 01679_ K-01 Serf collects debris. Map ----- +----------------------------------------------------+ | ???????## #??## #???#??## ????????????????? | | ????###### #??# ### # ????????????????? | | ????# ^ #??# ??????????????????? | | ????# # #??# ????????????????????? | | ????# # # ##### #?????????????????????????? | | ????# ^#^ *%= #??????????????????????????? | | ????#^## # ### ## ##??????????????????????????? | | ????#%%[^ ###?# #####???????????????????????????? | | ????#!######???# #???????????????????????????????? | | ##?## #????????# #???????????????????????????????? | | ## ########## #???????????????????????????????? | | #???????????????????????????????? | | ### #######???????????????????????????????? | | ### #?????????????????????????????????????? | | # ## #?????????????????????????????????????? | | ## ##???????????????##???????????????????? | | ?## ##???????????### ###?????????????????? | | ??## #?????????## ??????????????????? | | ???### ##?????????# #???????????????????? | | ?????## ##?????????## #????????????????????? | | ?????## ##??????????# ##???????????????????? | | ????## #???????????# ###?????????????????? | | ????# #?????####### """ ### #?????????????? | | ????# ####### g""" #?????????????? | | ????## %["" ####?????????????? | | ?????## ### @ k ##????????????????? | | ??????## ##########?# t #?????????????????? | | ???????####??????????# ## #?????????????????? | | ?????????????????????# #?# #?????????????????? | | ?????????????????????# #?? #????????????????? | | ?????????????????????# #?? #???????????????? | | ?????????????????????# #??? #???????????????? | | ?????????????????????# #???# #???????????????? | | ?????????????????????# #????# #???????????????? | | ?????????????????????# #????? ##???????????????? | | ?????????????????????# #??????##????????????????? | | ?????????????????????# #????????????????????????? | | ?????????????????????# ?????????????????????????? | | ?????????????????????# ?????????????????????????? | | ?????????????????????? ?????????????????????????? | | ?????????????????????? ?????????????????????????? | | ?????????????????????? ?????????????????????????? | | ?????????????????????????????????????????????????? | | ?????????????????????????????????????????????????? | | ?????????????????????????????????????????????????? | | ?????????????????????????????????????????????????? | | ?????????????????????????????????????????????????? | | ?????????????????????????????????????????????????? | | ?????????????????????????????????????????????????? | | ?????????????????????????????????????????????????? | +----------------------------------------------------+ Best States ------------- Heat Dissipation 35 Energy Generation 14 Energy Capacity 250 Matter Stores 300 Matter Capacity 300 Sight Range 16 Terrain Scan Density 10 Armor Coverage 150 Evasion (%) 55 Item Schematics ----------------- None Robot Schematics ------------------ None Fabricated ------------ Nothing Alien Tech Used ----------------- None Achievements -------------- None Challenges ------------ None Game ------ Seed MagneticLayeredRifle Manual? 0 Play Time 00:10:51 Cumulative 9.3 hours Start 2024.10.10 @ 17:45:57 End 2024.10.10 @ 17:58:02 Sessions 1 Manual Loads 0 Difficulty Rogue Special Mode None Game No. 18 Rogue 18 Adventurer 0 Explorer 0 Win Type - Total 0 Types 0/0/0/0/0/0/0/0/0 Lore% 6 Gallery% 11 Achievement% 12 Wizard Run 0 Options --------- Layout 1 ASCII 0 Keyboard 0 Movement Arrows Keybinds 0 Fullscreen 0 Font 20/SmallcapsGlow Map View 50x35 Zoom Use 0% Tactical HUD 1 Map Filters NONE Filters NONE Steam 1 RUN: c060397f-9094-4ec8-8689-e42793220839